Cogmind - Beta 11 X7 @@@ ROGUE MODE // 2021.11.16 @ 04:41:52 Player: thingamajigger Result: Self-destructed Performance ------------- Evolutions (5) 2500 Regions Visited (15) 3000 Robots Destroyed (197) 985 Value Destroyed (9482) 9482 Prototype IDs (7) 140 Alien Tech Used (0) 0 Bonus (7130) 7130 TOTAL SCORE: 23237 Bonus ------- High Alert Combat Kills 785 Follower Combat Kills 3071 Entered Garrisons 800 Used RIF Installer 2000 Built Enhanced Grunts 300 A7 Reached Mainframe 300 Met R17 at Cetus 500 Friendly Fire -626 Cogmind --------- Core Integrity 740/1000 Matter 99/300 Energy 310/310 System Corruption 1% Temperature Cool (0) Movement Treading (160) Location -5/Factory Parts ------- > --- POWER (1) -------- Cooled Deuterium Engine > --- PROPULSION (5) --- Improved Treads Centrium Heavy Treads Centrium Heavy Treads > --- UTILITY (8) ------ Huge Storage Unit Triangulator Advanced Visual Processing Unit Improved Medium Armor Plating Centrium Medium Armor Plating Relay Coupler [ARC] (10) Relay Coupler [Swarmer] (12) Relay Coupler [Brawler] (20) > --- WEAPON (3) ------- KE Penetrator KE Penetrator Remote Datajack > --- INVENTORY (25) --- Cooled Deuterium Engine Improved Treads Improved Treads Medium Treads Medium Treads Centrium Heavy Treads Advanced ECM Suite Layered Medium Armor Plating Centrium Medium Armor Plating Improved Shield Generator Relay Coupler [Swarmer] (46) Relay Coupler [Cutter] (33) Relay Coupler [Brawler] (31) Relay Coupler [Demolisher] (26) Relay Coupler [Behemoth] (10) Relay Coupler [Behemoth] (12) System Restoration Module Heavy Shock Bomb Launcher Remote Datajack Power Maul Chainsword Peak State ------------ > --- POWER ------------ Cooled Deuterium Engine > --- PROPULSION ------- Improved Treads Centrium Heavy Treads Centrium Heavy Treads > --- UTILITY ---------- Huge Storage Unit Triangulator Advanced Visual Processing Unit Improved Medium Armor Plating Centrium Medium Armor Plating Centrium Medium Armor Plating Relay Coupler [Swarmer] Relay Coupler [Brawler] > --- WEAPON ----------- Advanced Variable Charge Gun KE Penetrator KE Penetrator > --- INVENTORY -------- Cooled Deuterium Engine Improved Treads Improved Treads Medium Treads Medium Treads Centrium Heavy Treads Triangulator Advanced ECM Suite Layered Medium Armor Plating Centrium Medium Armor Plating Improved Shield Generator Relay Coupler [ARC] Relay Coupler [Swarmer] Relay Coupler [Cutter] Relay Coupler [Brawler] Relay Coupler [Demolisher] Relay Coupler [Behemoth] Relay Coupler [Behemoth] System Restoration Module System Restoration Module Heavy Shock Bomb Launcher Remote Datajack Power Maul Chainsword [Rating: 112] Favorites ----------- Power Light Nuclear Core Engine Improved Deuterium Engine Power Core Light Nuclear Core Reactor Quantum Reactor Propulsion Light Treads Treads Light Treads Leg Aluminum Leg Utility Relay Coupler [Swarmer] Device Triangulator Storage Huge Storage Unit Processor Advanced Visual Processing Unit Hackware Relay Coupler [Swarmer] Protection Light Armor Plating Weapon Improved Assault Rifle Energy Gun Advanced Variable Charge Gun Ballistic Gun Improved Assault Rifle Launcher Improved Grenade Launcher Special Weapon Remote Datajack Impact Weapon Power Maul Slashing Weapon Great Axe Build | -11 -10 -9 -9 -8 -8 -8 -8 -7 -7 -6 -6 -6 -6 -6 -5 ------- Run | Scr Mat Mat Min Mat Gar Mat Gar Fac Gar Fac Gar Fac Ext Cet Fac Slots Evolved 10 | . . 2 . 2 . . . 2 . 2 . . . . 2 Power . | . . . . . . . . . . . . . . . . Propulsion 3 | . . . . . . . . 1 . 2 . . . . . Utility 6 | . . 2 . 1 . . . 1 . . . . . . 2 Weapon 1 | . . . . 1 . . . . . . . . . . . Parts Attached 225 | 6 2 15 6 19 2 10 43 9 23 8 8 18 22 9 25 Power 17 | 1 . . 1 3 . 2 3 1 2 . 1 . . 1 2 Engine 7 | 1 . . 1 1 . 1 1 . 1 . . . . . 1 Core 9 | . . . . 2 . 1 2 1 1 . 1 . . . 1 Reactor 1 | . . . . . . . . . . . . . . 1 . Propulsion 49 | 2 . 5 2 3 . 2 8 1 2 4 1 7 5 5 2 Treads 47 | 2 . 3 2 3 . 2 8 1 2 4 1 7 5 5 2 Leg 2 | . . 2 . . . . . . . . . . . . . Wheel . | . . . . . . . . . . . . . . . . Hover . | . . . . . . . . . . . . . . . . Flight . | . . . . . . . . . . . . . . . . Utility 87 | 1 2 6 2 10 2 3 14 3 9 4 4 7 5 1 14 Device 26 | . 2 1 1 2 . 1 4 . 2 1 1 3 . . 8 Storage 6 | 1 . 2 . . . . 1 . 1 . . . 1 . . Processor 5 | . . 1 . 1 . . . 1 . . . 1 1 . . Hackware 28 | . . . . . . . 5 2 6 3 3 3 2 . 4 Protection 22 | . . 2 1 7 2 2 4 . . . . . 1 1 2 Artifact . | . . . . . . . . . . . . . . . . Weapon 72 | 2 . 4 1 3 . 3 18 4 10 . 2 4 12 2 7 Energy Gun 1 | . . . . . . . . . . . . . . 1 . Energy Cannon . | . . . . . . . . . . . . . . . . Ballistic Gun 34 | 2 . 4 1 3 . 3 6 . 5 . . 1 6 1 2 Ballistic Cannon . | . . . . . . . . . . . . . . . . Launcher 5 | . . . . . . . 3 1 . . 1 . . . . Special Weapon 17 | . . . . . . . 3 1 3 . 1 2 3 . 4 Impact Weapon 9 | . . . . . . . 3 1 1 . . 1 3 . . Slashing Weapon 6 | . . . . . . . 3 1 1 . . . . . 1 Piercing Weapon . | . . . . . . . . . . . . . . . . Special Melee Weapon . | . . . . . . . . . . . . . . . . Unidentified Prototypes 7 | . . 1 . 1 . . . . . . . . . 4 1 Corrupted Parts 3 | . . . . . . . . . . . . . . 2 1 System Corruption 4 | . . . . . . . . . . . . . . 3 1 Parts Lost 44 | . . 3 1 2 1 4 3 1 3 . 3 7 4 2 10 Power 5 | . . . 1 1 . 1 . . . . 1 . . . 1 Propulsion 14 | . . 2 . . . 1 . . 1 . 1 1 4 1 3 Utility 16 | . . . . 1 1 2 3 1 . . . 4 . 1 3 Weapon 9 | . . 1 . . . . . . 2 . 1 2 . . 3 Highest Loss Streak 5 | . . 2 1 1 1 2 1 1 1 . 3 3 1 2 5 Average Slot Usage (%) 94 | . 97 89 93 99 99 95 91 94 97 98 94 95 93 92 85 Engine 3 | . 14 11 5 5 . 7 4 . 3 6 1 . . . 1 Core 3 | . . . . 3 9 1 4 7 3 . 4 6 6 . . Treads 23 | . 28 13 22 18 18 18 17 22 22 33 29 32 32 32 18 Device 6 | . 12 14 22 18 9 9 8 4 . 1 5 5 . . 5 Storage 7 | . 14 11 11 9 9 9 9 7 7 6 6 6 6 6 5 Processor 4 | . . 5 . 2 9 9 1 5 7 1 . 3 6 13 5 Hackware 14 | . . . . . . . 8 14 26 27 26 20 19 13 15 Protection 5 | . . 4 11 14 17 14 9 7 . . . . 2 . 8 Ballistic Gun 12 | . 28 21 22 27 27 26 9 10 9 6 . 1 9 12 7 Launcher 1 | . . . . . . . 5 1 . . 5 2 . . . Special Weapon 3 | . . . . . . . 7 6 6 6 5 6 4 . 1 Impact Weapon 1 | . . . . . . . 3 2 . . . 2 4 6 . Slashing Weapon 1 | . . . . . . . . . 3 6 6 3 . . . Naked Turns . | . . . . . . . . . . . . . . . . Heaviest Build 128 | 12 13 40 38 54 51 46 47 41 100 101 104 102 106 121 128 Greatest Support 190 | 40 40 40 40 40 40 40 44 67 73 120 120 150 150 170 190 Greatest Overweight (x) 6 | . . 1 . 1 1 1 6 . 1 . 1 . . . . Average Overweight (x) . | . . . . 1 1 . . . . . . . . . . Largest Inventory Capacity 25 | 8 8 15 15 15 15 15 15 15 25 25 25 25 25 25 25 Average Capacity 19 | 6 8 10 15 15 15 15 15 15 19 25 25 25 25 25 25 Most Carried 25 | 1 3 15 15 15 15 15 15 15 21 25 25 25 21 25 25 Average Carried 17 | . 2 6 14 14 14 14 14 13 16 23 23 24 19 22 22 Final Capacity 25 | 8 8 15 15 15 15 15 15 15 25 25 25 25 25 25 25 Final Carried 25 | 1 3 15 14 15 15 15 15 14 21 23 25 21 19 23 22 Class Distribution -------------------- 33% | Botlord-Mutant 29% | Bothacker-Mutant 12% | Mutant 11% | Scavenger-Tank 6% | Scavenger-Skirmisher 3% | Scavenger-Mutant Dominant Class ---------------- Mutant | -10/Materials Mutant | -9/Materials Mutant | -9/Mines Scavenger-Tank | -8/Materials Scavenger-Tank | -8/Garrison Scavenger-Tank | -8/Materials Bothacker-Mutant | -8/Garrison Bothacker-Mutant | -7/Factory Bothacker-Mutant | -7/Garrison Bothacker-Mutant | -6/Factory Botlord-Mutant | -6/Garrison Botlord-Mutant | -6/Factory Botlord-Mutant | -6/Extension Botlord-Mutant | -6/Cetus Botlord-Mutant | -5/Factory Resources | -11 -10 -9 -9 -8 -8 -8 -8 -7 -7 -6 -6 -6 -6 -6 -5 ----------- Run | Scr Mat Mat Min Mat Gar Mat Gar Fac Gar Fac Gar Fac Ext Cet Fac Matter Collected 6443 | 110 91 463 284 884 303 476 1053 45 737 70 440 319 535 63 570 Remotely . | . . . . . . . . . . . . . . . . Salvage Created 8271 | . 178 693 375 1636 543 770 779 108 600 28 738 363 216 . 1244 Parts 415 | . 4 50 14 83 30 41 49 7 26 1 23 13 8 . 66 Haulers Intercepted 10 | . . 2 . 5 . 2 . . . . . . . . 1 Recyclers Shooed 3 | . . 2 . 1 . . . . . . . . . . . Parts Field Recycled . | . . . . . . . . . . . . . . . . Retrieved Matter . | . . . . . . . . . . . . . . . . Parts Self-Destructed . | . . . . . . . . . . . . . . . . Prevented . | . . . . . . . . . . . . . . . . Kills | -11 -10 -9 -9 -8 -8 -8 -8 -7 -7 -6 -6 -6 -6 -6 -5 ------- Run | Scr Mat Mat Min Mat Gar Mat Gar Fac Gar Fac Gar Fac Ext Cet Fac Combat Hostiles Destroyed 164 | . 4 8 9 23 16 16 23 5 12 . 21 7 3 . 17 Melee 10 | . . . . . . . 1 1 1 . 2 4 1 . . Guns 119 | . 4 8 9 23 16 16 13 . 11 . . . 2 . 17 AOE 32 | . . . . . . . 9 4 . . 19 . . . . Classes Destroyed 18 | . 1 5 3 3 . 1 3 . 1 . . 1 . . . Worker 3 | . . . . 2 . . . . . . . . . . 1 Builder 2 | . . . . 1 . . . . . . . . 1 . . Tunneler 1 | . . . . . . . . . . . . 1 . . . Hauler 10 | . . 2 . 5 . 2 . . . . . . . . 1 Recycler 5 | . . 3 1 1 . . . . . . . . . . . Operator 1 | . . . . . . 1 . . . . . . . . . Watcher 10 | . . 3 . 3 . . . 1 . 1 . . 1 . 1 Swarmer 43 | . . 2 . 2 8 5 12 4 1 . 8 . 1 . . Saboteur 1 | . . . . . . . 1 . . . . . . . . Grunt 73 | . 4 4 5 13 6 9 6 1 8 . 12 2 1 . 2 Brawler 3 | . . . 1 . . . 1 . . . 1 . . . . Duelist 2 | . . . . . . . 1 . . . . . . . 1 Sentry 19 | . . 2 . 6 2 2 1 . 2 . . . 1 . 3 Demolisher 1 | . . . 1 . . . . . . . . . . . . Specialist 4 | . . . . . . . 2 . . . . . . . 2 Hunter 6 | . . . . 2 . . . . 1 . . . 1 . 2 Programmer 13 | . . . . . . . . . 1 . . 5 . . 7 Assembled 2 | . . . 2 . . . . . . . . . . . . Best Kill Streak 16 | . 2 7 3 4 5 4 4 6 2 1 16 1 1 . 5 Combat Bots Only 16 | . 2 5 3 4 5 4 4 5 2 . 16 1 1 . 3 Max Kills in Single Turn 3 | . 1 1 1 2 2 2 2 3 1 1 3 1 1 . 1 Gunslinging 1 | . . . . 1 1 1 . . . . . . . . . Exploded 3 | . . . . . . . 2 2 . . 3 . . . . Melee 1 | . . . . . . . 1 1 1 . 1 1 1 . . Uniques/NPCs Destroyed . | . . . . . . . . . . . . . . . . Combat | -11 -10 -9 -9 -8 -8 -8 -8 -7 -7 -6 -6 -6 -6 -6 -5 -------- Run | Scr Mat Mat Min Mat Gar Mat Gar Fac Gar Fac Gar Fac Ext Cet Fac Damage Taken 12476 | . 354 357 557 973 568 737 883 155 989 520 494 1495 713 565 3116 Core 1376 | . 47 40 34 111 77 104 109 18 126 165 69 84 67 65 260 Absorbed by Shields 586 | . . . 81 60 . . 71 . 217 . . . 106 51 . Core Remaining (%) 69 | 100 81 . 81 . . . 27 . 79 . . . . 47 . Volleys Fired 591 | . 24 44 34 76 32 45 84 8 78 13 25 9 41 2 76 Largest 3 | . 2 2 2 3 3 3 3 1 2 1 1 1 3 2 3 Hottest 275 | . 40 46 46 71 71 71 71 36 50 30 36 30 84 56 275 Shots Fired 1199 | . 48 88 68 228 96 135 151 8 121 13 25 9 55 4 150 Gun 1068 | . 48 88 68 228 96 135 134 . 96 1 3 . 21 4 146 Cannon . | . . . . . . . . . . . . . . . . Launcher 29 | . . . . . . . 8 3 . . 18 . . . . Special 102 | . . . . . . . 9 5 25 12 4 9 34 . 4 Kinetic 1024 | . 48 88 68 228 96 135 134 . 96 1 3 . 21 4 102 Thermal 44 | . . . . . . . . . . . . . . . 44 Explosive 29 | . . . . . . . 8 3 . . 18 . . . . Electromagnetic . | . . . . . . . . . . . . . . . . Robot Hit Streak 29 | . 5 9 20 20 10 13 29 8 11 7 11 15 26 4 20 Robot Miss Streak 8 | . 3 2 3 2 7 7 4 2 3 2 . 2 8 2 3 Penetration Max 1 | . . . . . . . . . . . . . . . 1 Secondary Targets 28 | . . 2 3 2 6 7 5 . . . . . . . 3 Max Gunslinging Chain 1 | . . 1 1 1 1 1 1 . . . . . . . 1 Shots Hit Robots 872 | . 27 63 51 158 48 86 97 7 85 10 16 53 58 4 109 Core Hits 391 | . 12 26 18 64 27 35 43 7 24 1 59 5 26 1 43 Critical Kills 10 | . . . . 3 . . 1 1 . . . 1 . . 4 Critical Parts Destroyed 11 | . 1 . . . . . . . 1 . . 2 1 . 6 Critical Strikes 21 | . 1 . . 3 . . 1 1 1 . . 3 1 . 10 Destroy 16 | . 1 . . 3 . . 1 . 1 . . . . . 10 Smash 5 | . . . . . . . . 1 . . . 3 1 . . Melee Attacks 135 | . . . . . . . 7 5 9 8 10 70 24 2 . Thermal 3 | . . . . . . . 1 2 . . . . . . . Impact 101 | . . . . . . . 6 3 4 . . 62 24 2 . Slashing 31 | . . . . . . . . . 5 8 10 8 . . . Piercing . | . . . . . . . . . . . . . . . . Sneak Attacks 10 | . . . . . . . 2 1 3 . 1 1 2 . . Combat Hostiles 7 | . . . . . . . 2 1 3 . 1 . . . . Follow-up Attacks . | . . . . . . . . . . . . . . . . Damage Inflicted 19414 | . 205 846 776 2578 767 1353 2289 845 1499 16 3040 1498 663 92 2947 Guns 12211 | . 205 833 776 2577 767 1353 1335 . 1013 16 . . 340 92 2904 Cannons . | . . . . . . . . . . . . . . . . Explosions 4072 | . . . . . . . 763 752 . . 2514 . . . 43 Melee 3087 | . . . . . . . 191 93 486 . 526 1498 293 . . Ramming 44 | . . 13 . 1 . . . . . . . . 30 . . Kinetic 11234 | . 205 833 776 2577 767 1353 1335 . 1013 16 . . 340 92 1927 Thermal 1406 | . . . . . . . . 429 . . . . . . 977 Explosive 3600 | . . . . . . . 763 323 . . 2514 . . . . Electromagnetic 43 | . . . . . . . . . . . . . . . 43 Impact 1989 | . . . . . . . 191 93 54 . . 1358 293 . . Slashing 1098 | . . . . . . . . . 432 . 526 140 . . . Piercing . | . . . . . . . . . . . . . . . . Highest Corruption 15 | . . . . . . . 3 1 1 4 4 15 8 9 15 Average Corruption 4 | . . . . . . . 3 1 1 4 4 6 6 7 7 Corruption Purged 29 | . . . . . . . . . . . . 10 2 . 17 Effects 203 | . . . . . . . 30 . 17 7 27 29 53 12 28 Message Errors 62 | . . . . . . . 10 . 8 5 10 6 14 3 6 Matter Fused 48 | . . . . . . . 10 . . 1 10 10 6 4 7 Heat Flow Errors 19 | . . . . . . . 2 . . . 3 4 10 . . Energy Discharges 25 | . . . . . . . 6 . 2 1 . 1 8 2 5 Parts Rejected 2 | . . . . . . . . . . . . 1 1 . . Data Loss (minor) 28 | . . . . . . . 1 . 6 . 4 3 8 2 4 Data Loss (major) 12 | . . . . . . . . . . . . 3 5 1 3 Misfires 3 | . . . . . . . . . . . . . 1 . 2 Alerts 1 | . . . . . . . . . . . . 1 . . . Weapon Failures 3 | . . . . . . . 1 . 1 . . . . . 1 Overload Shots 4 | . . . . . . . . . . . . . . . 4 Overflow Damage 711 | . . . . . . . 56 240 19 . 30 230 136 . . Projectiles . | . . . . . . . . . . . . . . . . Explosions 302 | . . . . . . . 56 240 . . 6 . . . . Melee 409 | . . . . . . . . . 19 . 24 230 136 . . Knockbacks 11 | . . . . . . . . . . . . 10 1 . . Impact 11 | . . . . . . . . . . . . 10 1 . . Kinetic . | . . . . . . . . . . . . . . . . Secondary . | . . . . . . . . . . . . . . . . Self-Inflicted Damage 117 | . . . . . . . 70 28 . . 14 . . . 5 Shots 5 | . . . . . . . 2 1 . . 1 . . . 1 Rammed 5 | . . 3 . 1 . . . . . . . . 1 . . Targets Rammed 5 | . . 3 . 1 . . . . . . . . 1 . . Kicked . | . . . . . . . . . . . . . . . . Crushed . | . . . . . . . . . . . . . . . . Highest Temperature 439 | . 29 6 16 394 149 140 157 5 22 18 234 195 217 . 439 Average Temperature 69 | . 11 4 6 70 41 37 43 5 5 13 82 77 74 . 127 Received Heat Transfer 2878 | . 198 108 139 451 171 342 252 9 220 66 189 189 142 90 312 Effects 6 | . . . . . . . . . . . 2 . . . 4 Shutdowns 1 | . . . . . . . . . . . . . . . 1 Energy Bleed 1 | . . . . . . . . . . . . . . . 1 Interference 2 | . . . . . . . . . . . 2 . . . . Short Circuit 1 | . . . . . . . . . . . . . . . 1 Damage (minor) 1 | . . . . . . . . . . . . . . . 1 Siege Activations . | . . . . . . . . . . . . . . . . Robots Corrupted . | . . . . . . . . . . . . . . . . Combat Hostiles . | . . . . . . . . . . . . . . . . Parts Fried 5 | . . . . . . . . . . . . 2 3 . . Impact Corruptions 19 | . . . . . . . 1 . . . . 16 2 . . Robots Melted . | . . . . . . . . . . . . . . . . Combat Hostiles . | . . . . . . . . . . . . . . . . Parts Melted 3 | . . . . . . . . . . . . . . . 3 Heat Transferred 1447 | . . . . . . . . 300 . . . . . . 1147 Parts Sabotaged 9 | . . . . . . . 9 . . . . . . . . Parts Stolen . | . . . . . . . . . . . . . . . . Parts Stripped . | . . . . . . . . . . . . . . . . Power Chain Reactions . | . . . . . . . . . . . . . . . . Missiles Intercepted . | . . . . . . . . . . . . . . . . Alert | -11 -10 -9 -9 -8 -8 -8 -8 -7 -7 -6 -6 -6 -6 -6 -5 ------- Run | Scr Mat Mat Min Mat Gar Mat Gar Fac Gar Fac Gar Fac Ext Cet Fac Peak Influence 920 | . 80 280 100 363 527 552 920 548 821 615 804 434 635 503 547 Initial 483 | . . 27 34 39 132 256 159 483 376 430 177 422 18 320 169 Average 383 | . 27 163 57 217 333 386 589 480 695 400 597 88 126 427 336 Maximum Alert Level 3 | . . 1 . 1 2 2 3 2 3 2 3 2 2 2 2 Low Security (%) 32 | 100 100 60 100 43 25 2 6 . . 6 2 89 82 . 31 Level 1 18 | . . 39 . 56 34 46 16 10 3 34 18 . 5 13 16 Level 2 33 | . . . . . 40 51 33 89 34 58 68 10 12 86 52 Level 3 16 | . . . . . . . 44 . 61 . 10 . . . . Level 4 . | . . . . . . . . . . . . . . . . Level 5 . | . . . . . . . . . . . . . . . . High Security . | . . . . . . . . . . . . . . . . Max Security . | . . . . . . . . . . . . . . . . Squads Dispatched 42 | . 4 1 . 2 . 3 . 2 . 9 . 6 5 . 10 Investigation 9 | . . . . 1 . 1 . . . 2 . 2 3 . . Extermination 10 | . . . . . . . . 1 . 1 . 3 . . 5 Reinforcement 19 | . 4 1 . 1 . 2 . 1 . 2 . 1 2 . 5 Assault 2 | . . . . . . . . . . 2 . . . . . Garrison 2 | . . . . . . . . . . 2 . . . . . Intercept . | . . . . . . . . . . . . . . . . Construction Impeded 3 | . . . . . . . . 1 . 2 . . . . . Haulers Reinforced . | . . . . . . . . . . . . . . . . Active Scanning Responses . | . . . . . . . . . . . . . . . . Cargo Convoy Interrupts 1 | . . . . . . . . . . . . . . . 1 Stealth | -11 -10 -9 -9 -8 -8 -8 -8 -7 -7 -6 -6 -6 -6 -6 -5 --------- Run | Scr Mat Mat Min Mat Gar Mat Gar Fac Gar Fac Gar Fac Ext Cet Fac Distress Signals 14 | . . 1 1 2 . 2 . 1 . 2 . 1 2 2 . Communications Jammed . | . . . . . . . . . . . . . . . . Distress Signals . | . . . . . . . . . . . . . . . . Times Spotted 332 | . 8 15 9 35 16 27 35 14 33 12 28 12 44 10 34 Peak Tracking Total 11 | . 2 6 3 4 5 5 6 6 5 5 11 3 5 5 6 Tactical Retreats 18 | . . . . 1 1 2 1 2 2 . 1 1 5 . 2 Traps | -11 -10 -9 -9 -8 -8 -8 -8 -7 -7 -6 -6 -6 -6 -6 -5 ------- Run | Scr Mat Mat Min Mat Gar Mat Gar Fac Gar Fac Gar Fac Ext Cet Fac Traps Triggered 30 | . . . . 1 2 . 5 . 7 4 3 2 3 . 3 Indirectly . | . . . . . . . . . . . . . . . . Trap Hack Attempts . | . . . . . . . . . . . . . . . . Triggered . | . . . . . . . . . . . . . . . . Disarmed . | . . . . . . . . . . . . . . . . Reprogrammed . | . . . . . . . . . . . . . . . . Reused . | . . . . . . . . . . . . . . . . Traps Extracted . | . . . . . . . . . . . . . . . . Installed . | . . . . . . . . . . . . . . . . Triggered 1 | . . . . . . . . . . . . . . . 1 Machines | -11 -10 -9 -9 -8 -8 -8 -8 -7 -7 -6 -6 -6 -6 -6 -5 ---------- Run | Scr Mat Mat Min Mat Gar Mat Gar Fac Gar Fac Gar Fac Ext Cet Fac Machines Disabled 29 | . . . . . 1 . 4 2 2 2 7 . 8 . 3 Max in Single Turn 2 | . . . . . 1 . 1 2 1 . 2 . 1 . 2 Garrison Access 1 | . . . . . . . . . . 1 . . . . . Garrison Relay 12 | . . . . . 1 . 4 . 3 . 4 . . . . Phase Generator 2 | . . . . . . . 1 . . . 1 . . . . Machines Sabotaged . | . . . . . . . . . . . . . . . . Garrisons Compromised 1 | . . . . . . . . . . . . . . . 1 Overloaded Fab Kills . | . . . . . . . . . . . . . . . . Fab Network Shutdowns . | . . . . . . . . . . . . . . . . Hacking | -11 -10 -9 -9 -8 -8 -8 -8 -7 -7 -6 -6 -6 -6 -6 -5 --------- Run | Scr Mat Mat Min Mat Gar Mat Gar Fac Gar Fac Gar Fac Ext Cet Fac Machines Accessed 39 | . 1 4 . 6 . 3 . 3 . 5 . 4 11 1 1 Terminals 33 | . 1 3 . 5 . 2 . 1 . 4 . 4 11 1 1 Fabricators . | . . . . . . . . . . . . . . . . Repair Stations 1 | . . . . . . . . 1 . . . . . . . Recycling Units . | . . . . . . . . . . . . . . . . Scanalyzers 1 | . . 1 . . . . . . . . . . . . . Garrison Access 4 | . . . . 1 . 1 . 1 . 1 . . . . . Total Hacks 103 | . 2 12 . 19 . 9 . 5 . 13 . 9 29 2 3 Successful 62 | . 1 9 . 15 . 5 . 4 . 10 . 3 13 . 2 Failed 41 | . 1 3 . 4 . 4 . 1 . 3 . 6 16 2 1 Catastrophic 7 | . . 1 . . . 1 . 1 . . . 1 2 1 . Database Lockouts . | . . . . . . . . . . . . . . . . Manual 75 | . 2 9 . 18 . 7 . 2 . 9 . 9 15 1 3 Terminals 95 | . 2 10 . 18 . 8 . 2 . 12 . 9 29 2 3 Fabricators . | . . . . . . . . . . . . . . . . Repair Stations 2 | . . . . . . . . 2 . . . . . . . Recycling Units . | . . . . . . . . . . . . . . . . Scanalyzers 2 | . . 2 . . . . . . . . . . . . . Garrison Access 4 | . . . . 1 . 1 . 1 . 1 . . . . . Terminal Hacks 22 | . . 2 . 7 . 3 . . . 4 . . 6 . . Open Door 5 | . . . . . . . . . . . . . 5 . . Terminal Index 3 | . . . . 1 . . . . . 1 . . 1 . . Garrison Index 2 | . . . . 1 . . . . . 1 . . . . . Alert Level 1 | . . . . 1 . . . . . . . . . . . Unreport Threat 3 | . . . . 1 . 1 . . . 1 . . . . . Locate Traps 6 | . . 2 . 2 . 2 . . . . . . . . . Recall Investigation 1 | . . . . . . . . . . 1 . . . . . Zone Layout 1 | . . . . 1 . . . . . . . . . . . Fabricator Hacks . | . . . . . . . . . . . . . . . . Repair Station Hacks 2 | . . . . . . . . 2 . . . . . . . Scan Component 1 | . . . . . . . . 1 . . . . . . . Repair 1 | . . . . . . . . 1 . . . . . . . Recycling Unit Hacks . | . . . . . . . . . . . . . . . . Scanalyzer 2 | . . 2 . . . . . . . . . . . . . Insert Component 1 | . . 1 . . . . . . . . . . . . . Analyze 1 | . . 1 . . . . . . . . . . . . . Garrison Access Hacks 4 | . . . . 1 . 1 . 1 . 1 . . . . . Unlock Access 4 | . . . . 1 . 1 . 1 . 1 . . . . . Unauthorized Hacks 32 | . 1 5 . 7 . 1 . 1 . 5 . 3 7 . 2 Terminals 32 | . 1 5 . 7 . 1 . 1 . 5 . 3 7 . 2 Track 13 | . 1 3 . 3 . 1 . . . 1 . 1 2 . 1 Assimilate 1 | . . . . 1 . . . . . . . . . . . Botnet 14 | . . 2 . 3 . . . 1 . 3 . 2 3 . . Disrupt 1 | . . . . . . . . . . . . . 1 . . Operators 3 | . . . . . . . . . . 1 . . 1 . 1 Fabricators . | . . . . . . . . . . . . . . . . Repair Stations . | . . . . . . . . . . . . . . . . Recycling Units . | . . . . . . . . . . . . . . . . Scanalyzers . | . . . . . . . . . . . . . . . . Garrison Access . | . . . . . . . . . . . . . . . . Data Cores Recovered 2 | . . . . . . 1 . . . . . . 1 . . Used . | . . . . . . . . . . . . . . . . Hacking Detections 32 | . 1 4 . 5 . 2 . 2 . 4 . 4 7 2 1 Full Trace Events 3 | . . . . . . 1 . . . . . . 2 . . Feedback Events . | . . . . . . . . . . . . . . . . Feedback Blocked . | . . . . . . . . . . . . . . . . Robot Schematics Acquired . | . . . . . . . . . . . . . . . . Robots Built . | . . . . . . . . . . . . . . . . Matter . | . . . . . . . . . . . . . . . . Time . | . . . . . . . . . . . . . . . . Total Robot Build Rating . | . . . . . . . . . . . . . . . . Part Schematics Acquired 1 | . . 1 . . . . . . . . . . . . . Parts Built . | . . . . . . . . . . . . . . . . Matter . | . . . . . . . . . . . . . . . . Time . | . . . . . . . . . . . . . . . . Total Part Build Rating . | . . . . . . . . . . . . . . . . Parts Repaired 1 | . . . . . . . . 1 . . . . . . . Time 38 | . . . . . . . . 38 . . . . . . . Parts Recycled . | . . . . . . . . . . . . . . . . Recycled Matter . | . . . . . . . . . . . . . . . . Retrieved Matter . | . . . . . . . . . . . . . . . . Retrieved Components . | . . . . . . . . . . . . . . . . Parts Scanalyzed 1 | . . 1 . . . . . . . . . . . . . Part Schematics Acquired 1 | . . 1 . . . . . . . . . . . . . Parts Damaged . | . . . . . . . . . . . . . . . . Bothacking | -11 -10 -9 -9 -8 -8 -8 -8 -7 -7 -6 -6 -6 -6 -6 -5 ------------ Run | Scr Mat Mat Min Mat Gar Mat Gar Fac Gar Fac Gar Fac Ext Cet Fac Used RIF Installer 4 | . . . . . 1 . 1 . 1 . 1 . . . . Threat Obfuscator 1 | . . . . . . . . . . . 1 . . . . Robot Detection 1 | . . . . . . . . . 1 . . . . . . Structural Interface 1 | . . . . . . . 1 . . . . . . . . Robots Hacked 47 | . . . . . . . 6 4 17 5 2 1 9 . 3 Non-combat 5 | . . . . . . . . 2 . 2 . 1 . . . Combat 42 | . . . . . . . 6 2 17 3 2 . 9 . 3 Robot Hacks Applied 57 | . . . . . . . 7 4 19 6 2 6 10 . 3 generate_echo 1 | . . . . . . . . . . . . 1 . . . ignore_repairs 1 | . . . . . . . . . . 1 . . . . . purge_threat 2 | . . . . . . . . . . . . 2 . . . reprogram_traps 1 | . . . . . . . . . . . . 1 . . . block_reporting 1 | . . . . . . . . . . . . 1 . . . summon_haulers 1 | . . . . . . . . . . . . 1 . . . map_route 2 | . . . . . . . . 1 . 1 . . . . . relay_feed 1 | . . . . . . . . 1 . . . . . . . focus_fire 1 | . . . . . . . . . . . . . 1 . . scatter_targeting 3 | . . . . . . . 1 . . . . . 2 . . spike_heat 1 | . . . . . . . . . . . . . 1 . . overload_power 3 | . . . . . . . . . 3 . . . . . . disable_weapons 1 | . . . . . . . . . 1 . . . . . . go_dormant 1 | . . . . . . . . . . 1 . . . . . overwrite_iff 27 | . . . . . . . 4 1 14 . 2 . 4 . 2 streamctrl_high 7 | . . . . . . . 1 1 1 2 . . 1 . 1 formatsys_high 3 | . . . . . . . 1 . . 1 . . 1 . . Relay Couplers Released 45 | . . . . . 3 . 14 . 11 2 15 . . . . Machine Destruction 45 | . . . . . 3 . 14 . 11 2 15 . . . . Attached 27 | . . . . . . . 5 2 6 3 3 3 1 . 4 Robots Rewired 22 | . . . . . . . . . 6 . . . 16 . . Allies Hacked 2 | . . . . . . . . . . . . . 1 . 1 Hacks Repelled . | . . . . . . . . . . . . . . . . Allies | -11 -10 -9 -9 -8 -8 -8 -8 -7 -7 -6 -6 -6 -6 -6 -5 -------- Run | Scr Mat Mat Min Mat Gar Mat Gar Fac Gar Fac Gar Fac Ext Cet Fac Total Allies 76 | . . . . 1 . . 6 2 20 3 2 . 34 5 3 Largest Group 17 | . . . . 1 1 1 2 1 7 6 1 . 15 17 10 Highest-Rated Group 931 | . . . . 10 10 10 30 30 224 192 29 . 555 931 584 Highest-Rated Ally 156 | . . . . 10 10 10 18 30 32 41 29 . 156 156 147 Total Orders 17 | . . . . . 2 4 . . 3 2 . . 4 2 . STAY 9 | . . . . . 1 2 . . 2 1 . . 2 1 . FOLLOW 7 | . . . . . 1 2 . . 1 . . . 2 1 . GUARD 1 | . . . . . . . . . . 1 . . . . . Ally Attacks 515 | . . . . . . . 23 9 45 31 11 . 240 61 95 Total Damage 13055 | . . . . . . . 449 167 777 1545 151 . 5154 1788 3024 Kills 86 | . . . . . . . 3 . 7 11 1 . 43 12 9 Allies Corrupted 1 | . . . . . . . . . . 1 . . . . . Allies Melted 3 | . . . . . . . . 1 . . . . 1 . 1 Intel | -11 -10 -9 -9 -8 -8 -8 -8 -7 -7 -6 -6 -6 -6 -6 -5 ------- Run | Scr Mat Mat Min Mat Gar Mat Gar Fac Gar Fac Gar Fac Ext Cet Fac Robot Analysis Total . | . . . . . . . . . . . . . . . . Derelict Logs Recovered 2 | . . . 2 . . . . . . . . . . . . Drone Launches . | . . . . . . . . . . . . . . . . Drone Recoveries . | . . . . . . . . . . . . . . . . Exploration | -11 -10 -9 -9 -8 -8 -8 -8 -7 -7 -6 -6 -6 -6 -6 -5 ------------- Run | Scr Mat Mat Min Mat Gar Mat Gar Fac Gar Fac Gar Fac Ext Cet Fac Turns Passed 19717 | 66 483 616 722 1722 796 986 2804 581 2879 921 1539 1397 2007 415 1783 Spaces Moved 8731 | 39 136 252 268 523 267 403 1337 322 1221 514 656 711 981 185 916 Core 6 | 5 . . . . . . 1 . . . . . . . . Treads 8657 | 34 136 184 268 523 267 403 1336 322 1221 514 656 711 981 185 916 Legs 68 | . . 68 . . . . . . . . . . . . . Wheels . | . . . . . . . . . . . . . . . . Hover . | . . . . . . . . . . . . . . . . Flight . | . . . . . . . . . . . . . . . . Fastest Speed 50 | 50 160 120 160 260 260 160 145 145 150 154 157 160 160 160 160 Average Speed 181 | 145 160 162 160 260 260 203 180 149 190 156 200 160 160 160 160 Slowest Speed 350 | 160 160 200 160 260 260 260 350 150 250 157 260 160 160 160 160 Overloaded Moves . | . . . . . . . . . . . . . . . . Propulsion Burnouts . | . . . . . . . . . . . . . . . . Robots Hopped 1 | . . . . . . . . . . . . . 1 . . Cave-ins Triggered . | . . . . . . . . . . . . . . . . Exploration Rate (%) 49 | 4 38 24 56 46 48 35 94 10 97 20 97 28 89 74 25 Regions Visited 15 Branch Regions 3 Pre-discovered Areas 2 | . . . 2 . . . . . . . . . . . . Known Exits Taken 6 | . . . . 1 . 1 . 1 . 1 . . 1 1 . Unknown Exits Taken 5 | 1 1 1 1 . . . . . . . . 1 . . . Scrap Searched 1 | . . . 1 . . . . . . . . . . . . Spaces Dug 49 | . . . . . . . 29 1 . 8 1 6 2 1 1 Terrain Destroyed 300 | . . . . . . . 68 70 . 8 125 6 2 1 20 Melee 18 | . . . . . . . . 1 . 8 . 6 2 1 . Projectile 20 | . . . . . . . . . . . . . . . 20 AOE 262 | . . . . . . . 68 69 . . 125 . . . . Terrain Rammed . | . . . . . . . . . . . . . . . . Walls Destroyed . | . . . . . . . . . . . . . . . . Machines Disabled . | . . . . . . . . . . . . . . . . Actions | -11 -10 -9 -9 -8 -8 -8 -8 -7 -7 -6 -6 -6 -6 -6 -5 --------- Run | Scr Mat Mat Min Mat Gar Mat Gar Fac Gar Fac Gar Fac Ext Cet Fac Total 11544 | 45 363 372 495 741 314 479 1595 404 1679 615 845 859 1342 300 1096 Wait 1448 | . 199 24 183 99 6 9 75 51 276 56 120 38 172 86 54 Move 8710 | 38 135 251 267 522 265 402 1335 321 1219 513 654 710 978 184 916 Hop 1 | . . . . . . . . . . . . . 1 . . Pick Up 132 | 1 2 22 . 6 3 6 18 4 18 11 14 4 1 7 15 Fast Attach 76 | 6 2 7 1 8 . 2 16 2 2 1 . 10 8 4 7 Attach 87 | . . 7 1 3 1 6 18 2 7 5 7 5 6 5 14 Detach 21 | . . 1 . 1 . . 6 1 . 1 3 . 3 2 3 Swap 62 | . . 1 4 8 1 2 9 5 14 2 1 3 8 . 4 Drop 110 | . 1 12 5 17 2 7 20 4 6 5 5 10 1 8 7 Fire 591 | . 24 44 34 76 32 45 84 8 78 13 25 9 41 2 76 Melee 135 | . . . . . . . 7 5 9 8 10 70 24 2 . Ram . | . . . . . . . . . . . . . . . . Kick . | . . . . . . . . . . . . . . . . Crush 5 | . . 3 . 1 . . . . . . . . 1 . . Escape Stasis 26 | . . . . . 4 . 6 . 10 . 6 . . . . Rewire 140 | . . . . . . . 1 1 40 . . . 98 . . Trap . | . . . . . . . . . . . . . . . . Miscellaneous . | . . . . . . . . . . . . . . . . Route ------- -11/Scrapyard -10/Materials -9/Materials -9/Mines -8/Materials (discovered 2 exits: [*Sto] / Gar) -8/Garrison -8/Materials (discovered 2 exits: [*Sto] / Gar) -8/Garrison (discovered 3 exits: *Fac x3) -7/Factory (discovered 2 exits: *Fac / Gar) -7/Garrison (discovered 3 exits: *Fac x3) -6/Factory -6/Garrison (discovered 3 exits: *Fac x3) -6/Factory (discovered 2 exits: *Fac / *Ext) -6/Extension (discovered 2 exits: *Fac / *Cet) -6/Cetus (discovered 2 exits: *Fac / *Arc) -5/Factory History --------- Turn | Location | Event 44 | -11/Scrapyard | Discovered new exit (range 15) 67 | -11/Scrapyard | Entered Materials 316 | -10/Materials | Build established: Mutant 523 | -10/Materials | Discovered new exit (range 15) 550 | -10/Materials | Entered another Materials area 550 | -9/Materials | Evolved 2 slots: Utility x2 1150 | -9/Materials | Discovered new exit (range 9) 1166 | -9/Materials | Entered Mines 1174 | -9/Mines | Met a Derelict bent on vengeance 1234 | -9/Mines | Assembled infested the area 1249 | -9/Mines | Learned location of Storage (-8) 1742 | -9/Mines | Learned location of Zion (-6) 1856 | -9/Mines | Build established: Scavenger-Mutant 1878 | -9/Mines | Discovered new exit (range 4) 1888 | -9/Mines | Entered Materials 1888 | -8/Materials | Evolved 2 slots: Utility x1, Weapon x1 2115 | -8/Materials | Discovered new exit (range 7) 2163 | -8/Materials | Build established: Scavenger-Tank 3209 | -8/Materials | Build established: Scavenger-Skirmisher 3604 | -8/Materials | Identified exit to Garrison 3610 | -8/Materials | Entered Garrison 3610 | -8/Garrison | Accompanied by 1 ally 3623 | -8/Garrison | Installed Relay Interface Framework 3846 | -8/Garrison | Triggered checkpoint 3877 | -8/Garrison | Garrison Relay disabled 3933 | -8/Garrison | Build established: Scavenger-Tank 4042 | -8/Garrison | Triggered checkpoint 4074 | -8/Garrison | Triggered checkpoint 4375 | -8/Garrison | Discovered new exit (range 11) 4406 | -8/Garrison | Entered Materials 4406 | -8/Materials | Accompanied by 1 ally 4487 | -8/Materials | Discovered new exit (range 14) 4988 | -8/Materials | Core integrity fell below 50% 5260 | -8/Materials | Build established: Scavenger-Skirmisher 5390 | -8/Materials | Identified exit to Garrison 5392 | -8/Materials | Entered Garrison 5527 | -8/Garrison | Triggered checkpoint 5679 | -8/Garrison | Discovered new exit (range 12) 6028 | -8/Garrison | Triggered checkpoint 6045 | -8/Garrison | Garrison Relay disabled 6377 | -8/Garrison | Build established: Bothacker-Mutant 6652 | -8/Garrison | Triggered checkpoint 6665 | -8/Garrison | Garrison Relay disabled 6689 | -8/Garrison | Build established: Mutant 6772 | -8/Garrison | Triggered checkpoint 6965 | -8/Garrison | Discovered new exit (range 10) 6985 | -8/Garrison | Expanded RIF knowledge: Structural Interface 7066 | -8/Garrison | Triggered checkpoint 7161 | -8/Garrison | Garrison Relay disabled 7467 | -8/Garrison | Build established: Bothacker-Mutant 7742 | -8/Garrison | Phase Generator disabled 7952 | -8/Garrison | Triggered checkpoint 8014 | -8/Garrison | Triggered checkpoint 8082 | -8/Garrison | Triggered checkpoint 8123 | -8/Garrison | Garrison Relay disabled 8159 | -8/Garrison | Discovered new exit (range 10) 8196 | -8/Garrison | Entered Factory 8196 | -7/Factory | Evolved 2 slots: Propulsion x1, Utility x1 8295 | -7/Factory | Discovered new exit (range 8) 8308 | -7/Factory | Identified exit to Factory 8437 | -7/Factory | Repaired Adv. Treads 8768 | -7/Factory | Identified exit to Garrison 8777 | -7/Factory | Entered Garrison 8785 | -7/Garrison | Expanded RIF knowledge: Robot Detection 8832 | -7/Garrison | Triggered checkpoint 8910 | -7/Garrison | Garrison Relay disabled 9034 | -7/Garrison | Triggered checkpoint 9160 | -7/Garrison | Triggered checkpoint 9192 | -7/Garrison | Triggered checkpoint 9288 | -7/Garrison | Triggered checkpoint 9335 | -7/Garrison | Discovered exit to Factory (range 14) 9437 | -7/Garrison | Triggered checkpoint 9519 | -7/Garrison | Garrison Relay disabled 9826 | -7/Garrison | Triggered checkpoint 9859 | -7/Garrison | Triggered checkpoint 9950 | -7/Garrison | Triggered checkpoint 10269 | -7/Garrison | Discovered exit to Factory (range 10) 10920 | -7/Garrison | Discovered exit to Factory (range 12) 11656 | -7/Garrison | Entered Factory 11656 | -6/Factory | Accompanied by 6 allies 11656 | -6/Factory | Evolved 2 slots: Propulsion x2 12006 | -6/Factory | First assault squad dispatched 12528 | -6/Factory | Garrison activated, responded to threat 12576 | -6/Factory | Identified exit to Garrison 12577 | -6/Factory | Entered Garrison 12585 | -6/Garrison | Expanded RIF knowledge: Threat Obfuscation 12616 | -6/Garrison | Phase Generator disabled 12666 | -6/Garrison | Triggered checkpoint 12806 | -6/Garrison | Garrison Relay disabled 12890 | -6/Garrison | Build established: Botlord-Mutant 12903 | -6/Garrison | Triggered checkpoint 12942 | -6/Garrison | Lost 3 parts (1p1n1w) 12948 | -6/Garrison | Destroyed 16 combat bots 13027 | -6/Garrison | Garrison Relay disabled 13124 | -6/Garrison | Discovered new exit (range 15) 13486 | -6/Garrison | Garrison Relay disabled 13561 | -6/Garrison | Discovered new exit (range 14) 13752 | -6/Garrison | Triggered checkpoint 13857 | -6/Garrison | Discovered new exit (range 12) 13984 | -6/Garrison | Triggered checkpoint 14014 | -6/Garrison | Garrison Relay disabled 14116 | -6/Garrison | Entered Factory 15150 | -6/Factory | System corruption reached 10% 15175 | -6/Factory | Discovered new exit (range 11) 15272 | -6/Factory | Lost 3 parts (1n1u1w) 15449 | -6/Factory | Discovered new exit (range 14) 15513 | -6/Factory | Entered Extension 15698 | -6/Extension | Rescued a captive Derelict 15699 | -6/Extension | Rescued a captive Derelict 15736 | -6/Extension | Rescued a captive Derelict 15736 | -6/Extension | Rescued a captive Derelict 15845 | -6/Extension | Rescued a captive Derelict 15845 | -6/Extension | Rescued a captive Derelict 16391 | -6/Extension | Rescued a captive Derelict 16392 | -6/Extension | Rescued a captive Derelict 16860 | -6/Extension | Spotted B-75 Beast 16873 | -6/Extension | Spotted B-75 Beast 16889 | -6/Extension | Allies destroyed B-75 Beast 16896 | -6/Extension | Allies destroyed B-75 Beast 16966 | -6/Extension | Rescued A7 17159 | -6/Extension | Rescued a captive Derelict 17169 | -6/Extension | Rescued a captive Derelict 17186 | -6/Extension | Rescued a captive Derelict 17471 | -6/Extension | Discovered new exit (range 10) 17472 | -6/Extension | Discovered new exit (range 6) 17493 | -6/Extension | Disrupted transfer network 17495 | -6/Extension | Identified exit to Cetus 17497 | -6/Extension | Identified exit to Factory 17520 | -6/Extension | Entered Cetus 17520 | -6/Cetus | Accompanied by 13 allies (A7) 17525 | -6/Cetus | Acquired a Cetus Manufacturing Module code from A7 17540 | -6/Cetus | Spotted Cetus Guard 17540 | -6/Cetus | Spotted Cetus Guard 17540 | -6/Cetus | Spotted Cetus Guard 17544 | -6/Cetus | Allies destroyed Cetus Guard 17545 | -6/Cetus | Spotted Cetus Guard 17550 | -6/Cetus | Allies destroyed Cetus Guard 17550 | -6/Cetus | Core integrity fell below 50% 17555 | -6/Cetus | Allies destroyed Cetus Guard 17562 | -6/Cetus | Allies destroyed Cetus Guard 17633 | -6/Cetus | Started Cetus Manufacturing Module 17658 | -6/Cetus | Manufactured an Enhanced Grunt 17675 | -6/Cetus | Escorted A7 to Cetus Mainframe 17683 | -6/Cetus | Manufactured an Enhanced Grunt 17708 | -6/Cetus | Manufactured an Enhanced Grunt 17733 | -6/Cetus | Manufactured an Enhanced Grunt 17758 | -6/Cetus | Manufactured an Enhanced Grunt 17782 | -6/Cetus | P-60 Hacker assimilated allied ER-0QP(h) 17782 | -6/Cetus | Discovered new exit (range 20) 17812 | -6/Cetus | Identified exit to Archives 17842 | -6/Cetus | Spotted Cetus Guard 17844 | -6/Cetus | Spotted Cetus Guard 17844 | -6/Cetus | Spotted Cetus Guard 17849 | -6/Cetus | Discovered exit to Factory (range 20) 17854 | -6/Cetus | Spotted Cetus Guard 17856 | -6/Cetus | Allies destroyed Cetus Guard 17862 | -6/Cetus | Allies destroyed Cetus Guard 17865 | -6/Cetus | Allies destroyed Cetus Guard 17867 | -6/Cetus | Allies destroyed Cetus Guard 17881 | -6/Cetus | Met Revision 17 17935 | -6/Cetus | Entered Factory 17935 | -5/Factory | Accompanied by 10 allies (A7) 17935 | -5/Factory | Evolved 2 slots: Utility x2 17940 | -5/Factory | Received a hacking code to weaken MAIN.C 18783 | -5/Factory | Cargo convoy interrupted 18806 | -5/Factory | Lost 5 parts (1p2n1u1w) 18958 | -5/Factory | System corruption reached 10% 19718 | -5/Factory | Self-destructed Last Messages --------------- 19620_ System Restoration Module purges 1% of system corruption (8%). 19632_ System Restoration Module purges 1% of system corruption (7%). 19634_ System Restoration Module purges 1% of system corruption (6%). 19641_ System Restoration Module purges 1% of system corruption (5%). 19660_ System Restoration Module purges 1% of system corruption (4%). 19661_ System Restoration Module purges 1% of system corruption (3%). 19671_ System Restoration Module purges 1% of system corruption (2%). 19683_ System Restoration Module purges 1% of system corruption (1%). 19683_ System Restoration Module expended. 19685_ ALERT: Rogue bot located, Programmers report to Factory Zone 9B. 19717_ Jacked C-30 ARC... >>streamctrl_high System outside max range to establish control (5). 19718_ C-30 ARC bursts open, deploying its payload. 19718_ P-70 Sage unfolds itself. 19718_ H-66 Slayer unfolds itself. 19718_ X-72 Disruptor unfolds itself. 19718_ P-70 Sage unfolds itself. 19718_ E-15 Imp unfolds itself. 19718_ Slug penetrates Wall. Map ----- +----------------------------------------------------+ | ?????????????????????????????????????????????????? | | ?????????????????????????????????????????????????? | | ?????????????????????????????????????????????????? | | ?????????????????????????????????????????????????? | | ?????????????????????????????????????????????????? | | ?????????????????????????????????????????????????? | | ?????????????????????????????????????????????????? | | ?????????????????????????????????????????????????? | | ?????????????????????????????????????????????????? | | ?????????????????????????????????????????????????? | | ?????????????????????????????????????????????????? | | ?????????????????????????????????????????????????? | | ?????????????????????????????????????????????????? | | ?????????????????????????????????????????????????? | | ?????????????????????????????????????????????????? | | ?????????????????????????????????????????????????? | | ?????????#+#####+#############???????????????????? | | ?????????# #???????????????????? | | ?????????# #???????????????????? | | ?????????# #???????????????????? | | ?????????# #???????????????????? | | ?????????# +???????????????????? | | ?????????# epp #???????????????????? | | ?????????# h%x #???????????????????? | | ?????????# ##### ##### #???????????????????? | | ?????????# ????# #???# @ #???????????????????? | | ?????????#p????# #???# ????????????? | | ???????????????# #???# ???????? | | ???????????????# #???# """ """ """ """ "??????? | | ???????????????# #???# """ """ """ "??????????? | | ???????????????# #???# """ """ """ ???????????? | | ???????????????# #???# ????????????? | | ???????????????# #???# """ """ """????????????? | | ???????????#####+####### """ """ ""?????????????? | | ???????????# # """ """ "??????????????? | | ???????????# "" "" # ???????????????? | | ???????????#! "" "" # """ """????????????????? | | ???????????# """ """ # """ """???????"?"""????? | | ???????????# """ """ + """ """???????" """ ???? | | ???????????#= """ """ # ?? ???? | | ???????????# # #?? | | ???????????# "" "" ######## ??? | | ???????????# "" "" #?????????####### ??? | | ???????????# ] """ """ #???????????????# ### | | ???????????# """ """ #???????????????# ^ | | ???????????# """ """ #???????????????# | | ???????????# #??############## """ | | ???????????#########+###??# + """ | | ???????????######### #????# # """ | | ???????????# != # #????# """" """" # | +----------------------------------------------------+ Best States ------------- Heat Dissipation 45 Energy Generation 25 Energy Capacity 350 Matter Stores 485 Matter Capacity 500 Sight Range 20 Robot Scan Range 14 Terrain Scan Range 16 Terrain Scan Density 110 Armor Coverage 675 Evasion (%) 45 Recoil Reduction 5 Offensive Hacking 10 Relay Coupler Types 111 Relay Coupler Value 5 Item Schematics ----------------- Huge Storage Unit | -9/Materials | Scanalyzed Robot Schematics ------------------ None Fabricated ------------ Nothing Alien Tech Used ----------------- None Achievements -------------- None Challenges ------------ None Game ------ Seed AnalysisSmartbombMultirail Manual? 0 Play Time 02:07:00 Cumulative 114.0 hours Start 2021.09.24 @ 22:29:46 End 2021.11.16 @ 04:41:52 Sessions 9 Manual Loads 0 Difficulty Rogue Special Mode None Game No. 193 Rogue 176 Adventurer 4 Explorer 13 Win Type - Total 8 Types 6/0/0/2/0/0/0/0/0 Lore% 63 Gallery% 80 Achievement% 67 Wizard Run 0 Options --------- ASCII 0 Keyboard 1 Movement Numpad Keybinds 0 Fullscreen 1 Font 18/SmallcapsGlow Map View 76x50 Tactical HUD 1 Map Filters NONE Filters NONE Steam 1 RUN: 7dd506af-c41e-4257-a0c6-ae74dc41bf9d